bitfinex/quotes_SOLUSD_20240808
["timestamp","ask_amount","ask_price","bid_price","bid_amount"]
[1723103733739,28.35,154.37,154.33,6.4795]
[1723103733942,28.35,154.39,154.3,6.6015]
[1723103734140,11.69014421,154.38,154.35,6.4787]
[1723103734313,28.35,154.39,154.31,0.17]
[1723103734513,11.69013014,154.38,154.36,6.4783]
[1723103734823,28.35,154.41,154.37,6.4779]
[1723103735011,28.35,154.41,154.36,6.4783]
[1723103735012,31.68787703,154.4,154.36,6.4783]
[1723103735206,11.69014611,154.39,154.34,6.4788]
[1723103735408,28.35,154.35,154.3,6.6015]
[1723103735615,28.35,154.33,154.25,6.6622]
[1723103735826,28.35,154.31,154.25,6.6622]
[1723103736033,28.35,154.29,154.25,6.6622]
[1723103736209,28.35,154.27,154.25,6.4829]
[1723103736620,28.35,154.27,154.24,6.4833]
[1723103737344,28.35,154.29,154.26,6.4825]
[1723103737639,6.4804,154.32,154.23,15.5917]
[1723103737640,28.35,154.31,154.23,15.5917]
[1723103737819,1.29349714,154.3,154.27,6.482]
[1723103738909,1.29349714,154.3,154.28,6.4816]
[1723103739110,28.35,154.31,154.23,15.5917]
[1723103739341,28.35,154.31,154.24,45.34]
[1723103739637,34.8296,154.33,154.27,6.4818]
[1723103739819,28.35,154.31,154.27,6.4818]
[1723103740019,29.64349714,154.31,154.27,6.4818]
[1723103740523,29.64349714,154.33,154.23,15.5917]
[1723103740858,28.35,154.33,154.29,6.4809]
[1723103741039,28.35,154.33,154.24,45.34]
[1723103741040,28.35,154.33,154.3,6.4807]
[1723103741632,28.35,154.33,154.29,6.4812]
[1723103741828,28.35,154.31,154.27,16.2044]
[1723103742020,28.35,154.31,154.26,6.4824]
[1723103742021,1.29349714,154.3,154.26,6.4824]
[1723103742236,28.35,154.29,154.25,6.4829]
[1723103742418,28.35,154.29,154.23,15.5917]
[1723103742620,28.35,154.29,154.26,6.4824]
[1723103743137,28.35,154.29,154.23,15.5917]
[1723103743138,28.35,154.29,154.27,6.4821]
[1723103743445,28.35,154.31,154.28,6.4817]
[1723103743945,28.35,154.31,154.27,6.482]
[1723103744126,36.12389714,154.31,154.26,22.6879]
[1723103744656,7.00569424,154.34,154.23,6.4834]
[1723103744657,28.35,154.29,154.23,6.4834]
[1723103744846,34.8322,154.27,154.21,6.4846]
[1723103745021,34.8322,154.27,154.22,6.484]
[1723103745226,34.8322,154.27,154.21,6.4845]
[1723103745426,34.8322,154.27,154.22,6.4841]
[1723103745821,1.29349714,154.26,154.22,6.4841]
[1723103746034,34.8322,154.27,154.23,6.4836]
[1723103746035,28.35,154.27,154.23,6.4836]
[1723103746236,29.64349714,154.27,154.23,6.4836]
[1723103746544,28.35,154.27,154.23,6.4836]
[1723103748453,6.4828,154.26,154.21,6.4846]
[1723103749050,6.483,154.25,154.2,6.485]
[1723103749252,6.4826,154.26,154.2,6.485]
[1723103749423,6.4826,154.26,154.19,16.2134]
[1723103749626,29.20475935,154.3,154.16,45.3371]
[1723103749627,28.35,154.23,154.16,45.3371]
[1723103749928,1.29349714,154.22,154.17,6.4863]
[1723103750134,28.35,154.21,154.17,6.4863]
[1723103750644,28.35,154.21,154.18,6.4858]
[1723103751037,1.29349714,154.22,154.19,16.213]
[1723103751351,28.35,154.25,154.19,16.213]
[1723103751746,28.35,154.25,154.2,6.485]
[1723103751925,28.35,154.25,154.19,22.6984]
[1723103752124,28.35,154.21,154.12,21.8775]
[1723103752346,28.35,154.21,154.16,22.7034]
[1723103752539,28.35,154.21,154.17,6.4862]
[1723103753955,28.35,154.21,154.12,21.8775]
[1723103754132,34.8338,154.23,154.13,45.34]
[1723103754526,28.35,154.23,154.18,6.4858]
[1723103754727,28.35,154.21,154.13,0.34]
[1723103755031,28.35,154.21,154.17,6.486]
[1723103755427,28.35,154.21,154.18,6.4857]
[1723103757532,28.35,154.23,154.19,6.4853]
[1723103758039,29.64349714,154.23,154.19,6.4853]
[1723103758239,29.64349714,154.23,154.17,22.701]
[1723103758240,36.12739714,154.23,154.17,22.701]
[1723103758838,28.35,154.21,154.17,22.701]
[1723103759156,1.29349714,154.2,154.17,22.701]
[1723103759643,6.76271475,154.25,154.14,22.7062]
[1723103759644,28.35,154.19,154.14,22.7062]
[1723103759853,29.64349714,154.19,154.14,22.7062]
[1723103760149,28.35,154.21,154.17,6.4862]
[1723103760538,28.35,154.21,154.17,6.4863]
[1723103760855,1.29349714,154.2,154.17,6.4863]
[1723103761160,27.9831,154.23,154.18,6.4858]
[1723103761330,28.35,154.22,154.19,6.485]
[1723103761531,28.35,154.22,154.18,22.6996]
[1723103761858,28.35,154.22,154.19,6.4854]
[1723103763834,28.35,154.24,154.18,16.2141]
[1723103764237,28.35,154.24,154.2,6.485]
[1723103766327,28.35,154.24,154.19,6.4854]
[1723103766860,1.29349714,154.23,154.19,6.4854]
[1723103767435,28.35,154.24,154.18,16.2141]
[1723103767638,28.35,154.22,154.18,16.2141]
[1723103768065,28.35,154.22,154.12,21.8775]
[1723103768066,6.4855,154.19,154.14,16.2181]
[1723103768250,28.35,154.2,154.15,6.4868]
[1723103768559,28.35,154.2,154.14,16.2181]
[1723103769461,28.35,154.2,154.16,6.4865]
[1723103773668,28.35,154.2,154.15,6.4868]
[1723103774047,6.4842,154.22,154.16,6.4866]
[1723103774255,28.35,154.21,154.17,6.4859]
[1723103774550,28.35,154.21,154.18,6.4858]
[1723103774759,28.35,154.21,154.12,21.8775]
[1723103774957,28.35,154.21,154.18,6.4858]
[1723103775354,28.35,154.21,154.19,16.2135]
[1723103776345,28.35,154.21,154.18,6.4858]
[1723103777541,28.35,154.21,154.17,6.4862]
[1723103778053,28.35,154.23,154.18,6.4856]
[1723103778387,28.35,154.23,154.18,16.2139]
[1723103779249,29.64349714,154.23,154.18,16.2139]
[1723103779762,36.12739714,154.23,154.18,16.2139]
[1723103779969,34.8339,154.23,154.18,16.2139]
[1723103780175,28.35,154.21,154.18,16.2139]
[1723103780470,28.35,154.21,154.18,22.6998]
[1723103781566,28.35,154.21,154.18,16.2139]
[1723103782068,28.35,154.19,154.14,6.4875]
[1723103782266,28.35,154.19,154.12,21.8775]
[1723103782469,28.35,154.19,154.15,16.2178]
[1723103782850,28.35,154.19,154.15,22.7048]
[1723103783071,28.35,154.19,154.15,16.2178]
[1723103783865,28.35,154.19,154.15,22.7048]
[1723103784276,28.35,154.19,154.12,15.6936]
[1723103784466,28.35,154.15,154.08,28.83304202]
[1723103784775,28.35,154.15,154.11,6.4888]
[1723103786455,27.52756726,154.15,154.11,6.4888]
[1723103786845,28.35,154.13,154.09,16.2232]
[1723103787078,28.35,154.11,154.05,16.2278]
[1723103787445,28.35,154.11,154.09,6.4893]
[1723103788268,28.35,154.11,154.08,22.7152]
[1723103789157,28.35,154.11,154.09,6.4896]
[1723103789560,28.35,154.13,154.09,6.4896]
[1723103790582,28.35,154.13,154.1,6.489]
[1723103791478,28.35,154.13,154.08,22.7149]
[1723103791653,28.35,154.13,154.09,6.4895]
[1723103791973,28.35,154.13,154.04,21.0543]
[1723103792274,28.35,154.13,154.05,45.34]
[1723103792974,28.35,154.13,154.1,16.2223]
[1723103793773,28.35,154.13,154.1,22.7114]
[1723103793966,28.35,154.17,154.13,6.4876]
[1723103795186,28.35,154.15,154.12,16.2202]
[1723103795352,28.35,154.13,154.08,6.49]
[1723103795977,28.35,154.13,154.09,16.224]
[1723103796168,34.8381,154.13,154.07,6.4904]
[1723103796478,28.35,154.11,154.07,6.4904]
[1723103797082,28.35,154.11,154.08,6.4899]
[1723103799880,28.35,154.11,154.09,6.4894]
[1723103800076,28.35,154.13,154.1,6.4892]
[1723103801179,28.35,154.13,154.08,16.2245]
[1723103802062,28.35,154.13,154.08,22.7145]
[1723103802385,1.29349714,154.12,154.08,22.7145]
[1723103802585,1.29349714,154.12,154.09,6.4896]
[1723103802786,28.35,154.11,154.09,6.4896]
[1723103803864,28.35,154.11,154.1,6.4892]
[1723103804659,28.35,154.11,154.08,16.2245]
[1723103804660,28.35,154.13,154.11,6.4887]
[1723103805176,28.35,154.13,154.1,6.4892]
[1723103806167,28.35,154.13,154.09,6.4896]
[1723103807988,28.35,154.13,154.08,22.7145]
[1723103808400,28.35,154.11,154.08,22.7145]
[1723103808684,28.35,154.11,154.09,6.4895]
[1723103809588,28.35,154.11,154.08,22.7146]
[1723103809884,28.35,154.11,154.08,16.2245]
[1723103811286,28.35,154.11,154.06,6.4909]
[1723103811287,28.35,154.09,154.06,6.4909]
[1723103811872,28.35,154.09,154.04,16.2285]
[1723103813165,28.35,154.09,154.05,6.4912]
[1723103813367,28.35,154.09,154.06,6.4908]
[1723103813564,28.35,154.09,154.07,6.4903]
[1723103813790,28.35,154.09,154.05,6.491]
[1723103815784,28.35,154.09,154.06,6.4908]
[1723103819669,19.45,154.08,154.06,16.2265]
[1723103819886,16.5283,154.13,154.06,16.2265]
[1723103820074,16.5283,154.13,154.09,6.4895]
[1723103820474,23.0163,154.13,154.08,6.49]
[1723103821275,19.45,154.09,154.08,6.49]
[1723103821599,19.45,154.09,154.06,22.7173]
[1723103821799,6.4885,154.12,154.07,6.4905]
[1723103822005,19.45,154.08,154.07,6.4905]
[1723103822885,19.45,154.09,154.08,6.4899]
[1723103823302,19.45,154.09,154.06,22.717]
[1723103823504,19.45,154.08,154.07,6.4904]
[1723103824195,19.45,154.08,154.04,6.4917]
[1723103824400,19.45,154.05,154.04,6.4917]
[1723103824775,6.4893,154.1,154.03,16.2304]
[1723103824991,6.4893,154.1,153.94,3.82173903]
[1723103824992,19.45,154.04,153.98,6.4943]
[1723103825289,1.29349714,154.04,153.96,38.1735]
[1723103825506,0.17,154.09,153.96,21.9361]
[1723103825507,1.46349714,154.09,153.96,21.9361]
[1723103825693,28.39,154.04,154.01,6.4929]
[1723103826079,28.39,154.04,153.96,21.9361]
[1723103826395,28.39,154.04,153.99,16.2344]
[1723103826599,28.39,154.04,153.99,22.7279]
[1723103826775,28.39,154.04,153.99,16.2344]
[1723103826969,28.39,154.06,153.99,16.2344]
[1723103827170,28.39,154.06,153.99,22.7279]
[1723103827476,28.39,154.06,154.0,6.4934]
[1723103827477,34.8809,154.06,154.0,6.4934]
[1723103827788,28.39,154.06,154.01,6.493]
[1723103827996,28.39,154.06,153.99,16.2344]
[1723103828588,28.39,154.06,154.01,6.4927]
[1723103829109,28.39,154.06,154.02,6.4925]
[1723103830100,34.881,154.06,154.0,6.493]
[1723103830298,6.4914,154.05,153.99,16.2344]
[1723103830604,8.77013824,154.1,153.99,16.2344]
[1723103830605,28.39,154.02,153.99,22.7279]
[1723103830787,28.39,154.02,154.0,6.4934]
[1723103830988,28.39,154.02,153.99,22.7283]
[1723103831377,28.39,154.02,153.99,16.2344]
[1723103833082,28.39,154.04,153.99,16.2344]
[1723103834214,28.39,154.04,153.99,22.7282]
[1723103834909,34.8818,154.04,153.99,22.7282]
[1723103835127,28.39,154.02,153.99,22.7282]
[1723103835482,28.39,154.02,154.0,6.4933]
[1723103835688,28.39,154.04,153.99,16.2344]
[1723103835888,28.39,154.06,154.03,6.4921]
[1723103836101,28.39,154.06,154.02,16.2315]
[1723103836296,28.39,154.04,153.96,21.9361]
[1723103836512,28.39,154.02,153.98,6.494]
[1723103836814,28.39,154.02,153.96,21.9361]
[1723103837029,28.39,154.02,153.98,16.235]
[1723103837187,28.39,154.02,153.99,6.4937]
[1723103837388,28.39,154.02,153.98,22.7291]
[1723103837713,28.39,154.0,153.96,6.4948]
[1723103837913,28.39,154.0,153.97,6.4947]
[1723103838210,28.39,154.0,153.95,6.4953]
[1723103838989,28.39,153.98,153.94,22.7352]
[1723103839300,6.4935,154.0,153.93,0.8457099]
[1723103839301,34.576,153.96,153.93,0.8457099]
[1723103839505,34.886,153.94,153.93,0.8457099]
[1723103839816,6.4956,153.95,153.93,0.8457099]
[1723103839995,28.39,153.94,153.93,0.8457099]
[1723103841400,6.4977,153.9,153.85,22.249]
[1723103841591,28.39,153.87,153.85,22.249]
[1723103841914,28.39,153.89,153.86,6.4994]
[1723103842112,28.39,153.89,153.86,6.4993]
[1723103842304,28.39,153.89,153.85,22.249]
[1723103842521,28.39,153.89,153.86,6.4992]
[1723103843202,28.39,153.89,153.85,28.7487]
[1723103843520,28.39,153.89,153.85,6.0]
[1723103843902,14.85789089,153.93,153.85,6.0]
[1723103844129,6.0895,154.0,153.95,6.4952]
[1723103844333,28.39,153.97,153.86,1.29940016]
[1723103844498,28.39,153.97,153.92,6.4967]
[1723103844499,37.00052999,153.97,153.92,6.4967]
[1723103844824,8.61052999,153.97,153.92,6.4967]
[1723103845125,28.39,153.95,153.85,6.0]
[1723103845321,8.61052999,153.97,153.87,21.275]
[1723103845620,28.39,154.0,153.95,16.239]
[1723103845826,28.39,153.98,153.95,16.239]
[1723103846030,28.39,153.98,153.88,0.34]
[1723103846328,11.09989962,154.01,153.92,6.4968]
[1723103846329,28.39,153.96,153.92,6.4968]
[1723103846498,28.39,153.94,153.91,6.4972]
[1723103846919,28.39,153.94,153.92,6.4968]
[1723103847121,34.886,153.94,153.89,6.498]
[1723103847321,28.39,153.94,153.89,6.498]
[1723103847695,28.39,153.92,153.86,16.2474]
[1723103847922,28.39,153.92,153.88,6.4985]
[1723103848325,6.4956,153.95,153.89,6.4979]
[1723103848532,28.39,153.94,153.85,6.0]
[1723103848715,28.39,153.96,153.91,6.4972]
[1723103849399,28.39,153.96,153.92,6.4968]
[1723103849606,28.39,153.96,153.9,16.2433]
[1723103849802,28.39,153.94,153.9,16.2433]
[1723103850309,28.39,153.94,153.9,22.741]
[1723103850501,28.39,153.94,153.86,16.2476]
[1723103850705,22.98042538,153.99,153.86,16.2476]
[1723103850706,6.4974,153.91,153.86,16.2476]
[1723103850905,6.3564,153.95,153.86,16.2476]
[1723103850906,34.8878,153.9,153.86,16.2476]
[1723103851122,28.39,153.9,153.86,16.2476]
[1723103851500,44.9744,153.94,153.9,6.4976]
[1723103851719,28.39,153.94,153.9,6.4976]
[1723103851928,28.39,153.94,153.91,6.4972]
[1723103852107,28.39,153.94,153.85,6.0]
[1723103852108,28.39,153.96,153.86,1.29939987]
[1723103852309,28.39,153.96,153.93,6.4963]
[1723103853038,28.39,153.96,153.91,16.2423]
[1723103853229,28.39,153.96,153.91,22.7394]
[1723103853531,28.39,153.96,153.92,6.4967]
[1723103853727,28.39,153.96,153.93,6.4963]
[1723103854905,36.92108555,153.98,153.93,6.4964]
[1723103855131,43.41558555,153.98,153.93,6.4964]
[1723103855333,43.41558555,153.98,153.92,6.4968]
[1723103855705,28.39,153.96,153.92,6.4968]
[1723103855908,28.39,153.96,153.88,39.3731]
[1723103856114,28.39,153.96,153.9,6.4976]
[1723103856907,34.8852,153.96,153.9,6.4976]
[1723103857228,1.29349714,153.95,153.9,6.4976]
[1723103857426,28.39,153.94,153.89,6.4978]
[1723103857633,28.39,153.94,153.9,6.4975]
[1723103857801,28.39,153.94,153.89,6.498]
[1723103858007,28.39,153.92,153.85,22.2493]
[1723103858312,34.8872,153.92,153.86,6.499]
[1723103858503,28.39,153.92,153.89,6.4977]
[1723103858707,28.39,153.94,153.89,6.4977]
[1723103859228,34.886,153.94,153.89,6.4981]
[1723103859827,6.4964,153.93,153.88,22.7443]
[1723103860043,6.497,153.92,153.85,22.2494]
[1723103860338,28.39,153.92,153.86,6.4994]
[1723103860505,28.39,153.92,153.85,22.2494]
[1723103860506,28.39,153.9,153.85,6.0]
[1723103860703,6.4985,153.89,153.85,6.0]
[1723103860915,6.4981,153.89,153.85,6.0]
[1723103861319,34.8877,153.9,153.85,6.0]
[1723103861735,6.2452,153.91,153.85,6.0]
[1723103861736,6.4994,153.86,153.85,6.0]
[1723103861913,34.8894,153.86,153.85,6.0]
[1723103863212,28.39,153.86,153.85,6.0]
[1723103863636,34.8894,153.86,153.85,6.0]
[1723103867436,28.39,153.86,153.85,6.0]
[1723103867643,41.62392724,153.88,153.85,6.0]
[1723103867815,34.8886,153.88,153.85,6.0]
[1723103868015,28.39,153.88,153.85,6.0]
[1723103868450,34.8888,153.88,153.85,6.0]
[1723103868627,28.39,153.88,153.85,6.0]
[1723103868841,28.39,153.91,153.85,6.0]
[1723103869015,6.4989,153.88,153.85,6.0]
[1723103869212,28.39,153.89,153.85,6.0]
[1723103869417,8.53108555,153.93,153.85,6.0]
[1723103869634,28.39,153.9,153.85,6.0]
[1723103869833,6.4989,153.87,153.85,6.0]
[1723103870341,6.4994,153.86,153.85,6.0]
[1723103870515,34.8894,153.86,153.85,6.0]
[1723103871040,28.39,153.86,153.85,6.0]
[1723103874046,28.39,153.88,153.85,6.0]
[1723103874540,28.39,153.9,153.85,6.0]
[1723103874730,28.39,153.9,153.86,6.4992]
[1723103875642,34.8878,153.9,153.85,12.4997]
[1723103875832,34.8878,153.9,153.85,6.0]
[1723103876147,34.8878,153.9,153.85,12.4997]
[1723103877223,28.39,153.92,153.86,16.2476]
[1723103877444,8.53108555,153.93,153.86,16.2476]
[1723103877445,8.53108555,153.93,153.89,6.4977]
[1723103877639,36.92108555,153.93,153.87,6.4987]
[1723103877954,28.39,153.93,153.87,6.4987]
[1723103879025,6.4969,153.92,153.87,6.4987]
[1723103879247,34.8874,153.91,153.86,16.2476]
[1723103879631,28.39,153.91,153.88,6.4984]
[1723103879843,28.39,153.91,153.86,22.7468]
[1723103880053,28.39,153.91,153.87,6.4988]
[1723103880255,28.39,153.91,153.86,16.2476]
[1723103880556,28.39,153.93,153.86,16.2476]
[1723103880946,28.39,153.93,153.88,6.4984]
[1723103881155,28.39,153.93,153.86,16.2476]
[1723103881346,28.39,153.91,153.86,22.7466]
[1723103881937,28.39,153.91,153.86,16.2476]
[1723103882131,28.39,153.91,153.87,6.4989]
[1723103882346,28.39,153.91,153.86,22.7469]
[1723103882736,28.39,153.91,153.86,16.2476]
[1723103882941,16.5543909,153.95,153.83,16.2515]
[1723103882942,28.39,153.89,153.83,16.2515]
[1723103883144,28.39,153.87,153.83,16.2515]
[1723103883349,34.8891,153.87,153.81,28.6446]
[1723103883566,34.8891,153.87,153.81,22.1432]
[1723103883730,34.8891,153.87,153.82,6.5007]
[1723103884065,34.8891,153.87,153.84,6.5002]
[1723103884066,28.39,153.87,153.84,6.5002]
[1723103884364,34.8881,153.89,153.84,6.5002]
[1723103884936,28.39,153.87,153.81,22.1432]
[1723103885137,28.39,153.85,153.82,6.501]
[1723103885444,28.39,153.85,153.82,22.7528]
[1723103885649,28.39,153.87,153.82,22.7528]
[1723103885980,28.39,153.87,153.83,6.5004]
[1723103886333,6.4977,153.91,153.85,16.2495]
[1723103886636,28.39,153.91,153.87,6.4985]
[1723103887349,28.39,153.91,153.85,22.7492]
[1723103887350,34.8876,153.91,153.85,22.7492]
[1723103887553,34.8876,153.91,153.85,16.2495]
[1723103888050,6.4979,153.9,153.85,16.2495]
[1723103888256,28.39,153.86,153.81,38.3961]
[1723103888470,28.39,153.86,153.81,44.8975]
[1723103888683,28.39,153.86,153.81,38.3961]
[1723103888959,28.39,153.86,153.82,6.5007]
[1723103889161,28.39,153.86,153.82,6.501]
[1723103889371,28.39,153.86,153.83,6.5006]
[1723103890162,28.39,153.88,153.85,6.4998]
[1723103890363,28.39,153.88,153.83,16.2507]
[1723103890673,28.39,153.88,153.85,6.4997]
[1723103891060,28.39,153.88,153.84,6.5]
[1723103891569,28.39,153.9,153.83,16.2507]
[1723103891753,28.39,153.9,153.86,6.499]
[1723103891950,28.39,153.9,153.85,22.7485]
[1723103892259,28.39,153.9,153.87,6.4989]
[1723103892471,28.39,153.9,153.85,16.2488]
[1723103892940,28.39,153.9,153.86,6.499]
[1723103893141,28.39,153.9,153.87,6.4989]
[1723103893347,28.39,153.9,153.85,16.2488]
[1723103894059,28.39,153.92,153.89,6.4981]
[1723103894959,28.39,153.92,153.88,6.4985]
[1723103895154,28.39,153.92,153.89,6.498]
[1723103895460,16.55454261,153.95,153.89,16.2445]
[1723103895652,6.4944,153.98,153.92,6.4967]
[1723103895855,28.39,153.97,153.92,6.4967]
[1723103896165,28.39,153.97,153.93,6.4963]
[1723103896369,28.39,153.99,153.95,6.4955]
[1723103896548,15.8244,154.06,153.97,16.2369]
[1723103896754,34.8827,154.02,153.97,16.2369]
[1723103896973,28.39,154.02,153.92,0.17]
[1723103897274,28.39,154.02,153.96,6.4951]
[1723103897463,28.39,154.03,153.99,6.4937]
[1723103897646,28.39,154.03,153.98,6.4943]
[1723103898649,28.39,154.03,153.99,6.4939]
[1723103898855,28.39,154.03,153.98,22.7291]
[1723103899371,34.8824,154.03,153.98,16.2349]
[1723103899862,34.8824,154.03,153.98,22.7291]
[1723103901870,28.39,154.01,153.95,16.2389]
[1723103903055,28.39,153.99,153.93,22.1988]
[1723103903275,34.8839,153.99,153.93,22.1988]
[1723103903555,28.39,153.97,153.92,16.2419]
[1723103903766,28.39,153.97,153.93,6.4964]
[1723103903966,28.39,153.97,153.94,6.4957]
[1723103904152,28.39,153.99,153.94,16.239]
[1723103904582,28.39,154.01,153.98,6.4943]
[1723103905275,28.39,154.01,153.96,16.237]
[1723103905574,28.39,154.01,153.97,6.4945]
[1723103906480,28.39,154.01,153.96,16.237]
[1723103907051,28.39,154.03,153.96,16.237]
[1723103907871,28.39,154.03,153.97,15.9334]
[1723103908179,6.4922,154.04,153.99,6.4937]
[1723103908675,34.8822,154.03,153.99,6.4937]
[1723103908873,6.4927,154.02,153.97,15.5934]
[1723103909174,6.4927,154.02,153.97,22.0877]
[1723103909377,6.4927,154.02,153.97,15.5934]
[1723103910049,6.4927,154.02,153.97,22.0878]
[1723103910256,34.8822,154.03,153.98,6.4943]
[1723103910883,28.39,154.03,153.99,6.4939]
[1723103911375,6.4927,154.02,153.97,22.0881]
[1723103911786,28.39,154.01,153.96,16.237]
[1723103912079,28.39,153.99,153.95,6.4956]
[1723103912261,34.8839,153.99,153.94,21.9442]
[1723103912672,28.39,153.99,153.95,6.4955]
[1723103912871,28.39,154.01,153.94,15.4483]
[1723103913179,28.39,154.01,153.98,6.4943]
[1723103914492,28.39,154.01,153.97,6.4947]
[1723103915682,34.8834,154.01,153.96,6.4951]
[1723103916873,28.39,153.97,153.94,6.4959]
[1723103917289,28.39,153.99,153.95,6.4955]
[1723103918371,34.8839,153.99,153.94,6.4959]
[1723103918899,28.39,153.99,153.95,6.4955]
[1723103919777,28.39,154.01,153.91,1.2989345]
[1723103919969,34.8831,154.01,153.93,1.2989369]
[1723103920168,34.8831,154.01,153.96,6.4951]
[1723103921403,6.4935,154.0,153.96,6.4951]
[1723103922391,6.4935,154.0,153.95,6.4956]
[1723103922707,28.39,153.99,153.91,16.2432]
[1723103922896,28.39,153.97,153.91,16.2432]
[1723103923191,34.8848,153.97,153.92,6.4968]
[1723103923405,28.39,153.97,153.91,16.2432]
[1723103923909,28.39,153.99,153.95,6.4952]
[1723103924577,28.39,154.01,153.92,0.17]
[1723103924779,28.39,154.01,153.91,0.34]
[1723103924983,28.39,154.01,153.97,6.4946]
[1723103925279,34.883,154.01,153.97,6.4946]
[1723103925479,34.883,154.01,153.96,6.4951]
[1723103925794,28.39,154.01,153.97,6.4947]
[1723103927094,34.8831,154.01,153.96,6.4951]
[1723103927675,6.4927,154.02,153.97,6.4947]
[1723103927882,28.39,154.01,153.96,6.4951]
[1723103928290,28.39,153.99,153.96,6.4951]
[1723103928491,2.99684946,154.02,153.96,6.4951]
[1723103928492,34.8831,154.01,153.96,6.4951]
[1723103928805,34.8831,154.01,153.95,16.2383]
[1723103928985,28.39,153.99,153.93,16.2506]
[1723103929182,6.4947,153.98,153.92,6.4965]
[1723103929386,6.4947,153.97,153.92,16.2419]
[1723103929583,6.4947,153.97,153.9,6.4339]
[1723103929584,28.39,153.95,153.85,21.2295]
[1723103929788,6.4961,153.94,153.86,16.2483]
[1723103930393,28.39,153.93,153.86,16.2483]
[1723103930595,6.4976,153.91,153.86,16.2483]
[1723103930783,28.39,153.93,153.86,16.2483]
[1723103930784,6.4972,153.92,153.86,22.7473]
[1723103930983,28.39,153.93,153.86,16.2483]
[1723103931212,23.0753,153.97,153.85,21.2295]
[1723103931213,28.39,153.91,153.85,21.2295]
[1723103931392,6.4985,153.89,153.85,21.2295]
[1723103931714,6.4985,153.89,153.83,22.7517]
[1723103931900,6.4986,153.88,153.83,22.7517]
[1723103932608,34.8882,153.89,153.84,6.5]
[1723103933109,28.39,153.89,153.84,6.5]
[1723103933601,28.39,153.89,153.85,6.4998]
[1723103933982,34.8873,153.91,153.85,6.4998]
[1723103934498,61.08423609,153.97,153.82,6.0]
[1723103934499,28.39,153.93,153.87,6.4988]
[1723103934801,28.39,153.93,153.88,6.4985]
[1723103935508,34.8866,153.93,153.88,6.4985]
[1723103936092,6.4969,153.92,153.87,6.4989]
[1723103936291,6.4969,153.92,153.86,16.2482]
[1723103936292,6.4975,153.91,153.86,16.2482]
[1723103936489,6.4978,153.9,153.86,16.2482]
[1723103936698,6.4973,153.91,153.86,22.7475]
[1723103936881,6.4969,153.92,153.87,6.4989]
[1723103937093,28.39,153.93,153.88,6.4984]
[1723103937286,28.39,153.91,153.86,16.2482]
[1723103937612,28.39,153.91,153.86,22.7473]